bitfinex-derivatives/quotes_SOLF0:USTF0_20250206
["timestamp","ask_amount","ask_price","bid_price","bid_amount"]
[1738820125523,8.47920122,201.37,201.32,6.70841039]
[1738820125723,8.47920122,201.37,201.34,4.9664]
[1738820125926,0.03687846,201.38,201.33,0.03430822]
[1738820126119,8.47920122,201.43,201.37,8.47920122]
[1738820126328,8.47920122,201.45,201.41,4.9645]
[1738820126625,8.47920122,201.45,201.37,8.47920122]
[1738820127421,0.0351865,201.43,201.39,0.03688957]
[1738820127625,0.0351865,201.43,201.39,8.51609079]
[1738820128127,0.0351865,201.43,201.42,4.9644]
[1738820128724,8.47920122,201.47,201.44,4.9639]
[1738820129823,8.47920122,201.47,201.45,4.9637]
[1738820130124,0.03819769,201.48,201.45,4.9637]
[1738820131322,8.47920122,201.47,201.43,5.00042473]
[1738820131823,8.47920122,201.47,201.43,0.03642473]
[1738820133616,8.47920122,201.45,201.43,0.03642473]
[1738820149336,4.964,201.44,201.43,0.03642473]
[1738820149535,0.03819769,201.48,201.43,8.51562595]
[1738820149734,8.47920122,201.55,201.47,8.47920122]
[1738820149933,8.47920122,201.55,201.5,4.9625]
[1738820150135,8.47920122,201.55,201.49,8.47920122]
[1738820150335,8.47920122,201.55,201.51,4.9622]
[1738820150844,8.51333103,201.55,201.51,0.03451941]
[1738820152238,8.47920122,201.53,201.51,0.03451941]
[1738820154737,8.51333103,201.55,201.51,0.03451941]
[1738820156046,0.03412981,201.55,201.52,4.962]
[1738820158353,8.51333103,201.55,201.52,4.962]
[1738820161054,0.03412981,201.55,201.51,8.51372063]
[1738820161254,13.43900122,201.61,201.53,8.47920122]
[1738820161451,8.47920122,201.63,201.55,8.47920122]
[1738820161955,8.47920122,201.63,201.56,1.5226]
[1738820162347,0.03243477,201.62,201.57,0.03589052]
[1738820162551,13.43900122,201.61,201.57,0.03589052]
[1738820162747,8.47920122,201.61,201.57,0.03589052]
[1738820164055,0.03243477,201.62,201.58,4.9604]
[1738820164749,0.03243477,201.62,201.57,8.51509174]
[1738820164958,0.03243477,201.62,201.59,8.47920122]
[1738820165358,13.43740122,201.68,201.62,4.9595]
[1738820165554,8.47920122,201.68,201.61,8.47920122]
[1738820165754,8.47920122,201.68,201.59,8.47920122]
[1738820166454,8.47920122,201.68,201.61,0.03409201]
[1738820166857,4.9583,201.67,201.61,0.03409201]
[1738820167054,8.47920122,201.66,201.61,0.03409201]
[1738820167963,8.47920122,201.68,201.61,0.03409201]
[1738820168462,4.9585,201.67,201.61,13.47279323]
[1738820168760,8.47920122,201.68,201.61,8.51329323]
[1738820169158,8.47920122,201.7,201.63,8.47920122]
[1738820169460,8.47920122,201.7,201.64,0.03648887]
[1738820170255,32.67109433,201.72,201.67,4.9582]
[1738820170459,24.19189311,201.72,201.67,4.9582]
[1738820171162,4.9568,201.73,201.67,4.9582]
[1738820171366,204.7296642,201.77,201.67,4.9582]
[1738820171560,4.9566,201.74,201.67,4.9582]
[1738820171857,190.0,201.86,201.7,13.30388143]
[1738820171858,24.18027972,201.83,201.7,13.30388143]
[1738820172058,24.18027972,201.83,201.73,13.2698642]
[1738820172364,4.9549,201.82,201.74,0.03636388]
[1738820172563,24.18027972,201.83,201.74,0.03636388]
[1738820172863,4.9549,201.81,201.74,4.99286388]
[1738820176365,4.9546,201.82,201.75,4.9563]
[1738820178971,37.45014392,201.83,201.74,0.03636388]
[1738820179170,13.2698642,201.8,201.74,0.03636388]
[1738820180471,4.9558,201.78,201.74,0.03636388]
[1738820182574,13.2698642,201.8,201.74,0.03636388]
[1738820182771,4.9563,201.75,201.74,0.03636388]
[1738820188782,4.9563,201.75,201.74,6.388e-05]
[1738820189874,4.9584,201.67,201.62,31.34548544]
[1738820190281,13.2698642,201.72,201.6,6.5611]
[1738820191179,0.0331197,201.68,201.64,0.0354746]
[1738820191582,4.9585,201.67,201.64,0.0354746]
[1738820196182,0.0331197,201.68,201.64,0.0354746]
[1738820196383,4.9585,201.66,201.64,0.0354746]
[1738820198381,4.9914197,201.68,201.64,0.0354746]
[1738820198784,0.0331197,201.68,201.64,0.0354746]
[1738820199276,4.9583,201.67,201.64,0.0354746]
[1738820200484,4.9586,201.66,201.64,0.0354746]
[1738820201387,0.0331197,201.68,201.64,0.0354746]
[1738820201587,4.9914197,201.68,201.64,0.0354746]
[1738820202285,4.9583,201.67,201.64,0.0354746]
[1738820203087,0.0331197,201.68,201.64,0.0354746]
[1738820203292,4.9914197,201.68,201.64,0.0354746]
[1738820207190,4.9583,201.67,201.64,0.0354746]
[1738820208691,0.0331197,201.68,201.64,0.0354746]
[1738820210295,0.0331197,201.68,201.66,8.49655099]
[1738820210589,8.49655099,201.77,201.66,8.49655099]
[1738820210789,8.49655099,201.77,201.7,8.49655099]
[1738820210996,4.9568,201.74,201.7,8.49655099]
[1738820211593,4.9568,201.74,201.7,8.53236029]
[1738820213394,4.9563,201.76,201.7,8.53236029]
[1738820214996,4.9563,201.76,201.7,13.48996029]
[1738820217597,8.49655099,201.77,201.7,13.48996029]
[1738820217897,4.9564,201.75,201.7,13.48996029]
[1738820222001,4.9569,201.73,201.7,0.0358093]
[1738820224606,13.45315099,201.75,201.7,0.0358093]
[1738820225707,4.9567,201.74,201.7,0.0358093]
[1738820227906,4.9571,201.72,201.7,0.0358093]
[1738820230412,8.49655099,201.73,201.7,0.0358093]
[1738820230606,13.45385099,201.71,201.7,0.0358093]
[1738820230912,8.49655099,201.75,201.7,0.0358093]
[1738820231912,4.9569,201.73,201.7,0.0358093]
[1738820232211,8.49655099,201.77,201.7,0.0358093]
[1738820232408,56.86382023,201.79,201.7,8.53236029]
[1738820232609,24.18363462,201.79,201.74,8.49655099]
[1738820233114,24.18363462,201.79,201.74,8.53030442]
[1738820233713,32.68018561,201.79,201.74,0.03375343]
[1738820233912,4.9557,201.78,201.74,0.03375343]
[1738820234313,29.13913462,201.79,201.74,0.03375343]
[1738820235418,32.68018561,201.79,201.74,0.03375343]
[1738820235612,4.9557,201.78,201.74,0.03375343]
[1738820238524,32.68018561,201.79,201.74,0.03375343]
[1738820238822,4.9559,201.77,201.74,0.03375343]
[1738820239123,13.45245099,201.77,201.74,0.03375343]
[1738820239421,8.49655099,201.77,201.74,0.03375343]
[1738820239622,24.18363462,201.79,201.76,8.49655099]
[1738820240128,21.62749657,201.79,201.78,8.49655099]
[1738820240330,16.78609657,201.79,201.78,8.49655099]
[1738820240526,4.29399657,201.79,201.78,8.49655099]
[1738820241525,1.87339657,201.79,201.78,8.49655099]
[1738820245832,1.87339657,201.79,201.78,13.45215099]
[1738820246729,1.57,201.88,201.78,8.49655099]
[1738820246932,1.57,201.88,201.83,8.49655099]
[1738820248029,10.06655099,201.88,201.81,13.48606854]
[1738820248727,15.01975099,201.88,201.81,13.48606854]
[1738820249234,10.06655099,201.88,201.81,13.48606854]
[1738820249531,190.0,201.98,201.83,8.49655099]
[1738820249729,190.0,201.98,201.77,3.46]
[1738820249730,13.44885099,201.92,201.85,8.49655099]
[1738820250126,13.44885099,201.92,201.86,0.03499888]
[1738820256033,8.49655099,201.96,201.91,4.9523]
[1738820256234,8.49655099,202.0,201.93,8.49655099]
[1738820256832,13.44695099,202.0,201.93,13.44835099]
[1738820257333,8.49655099,202.02,201.95,13.44795099]
[1738820257534,8.49655099,202.02,201.95,8.49655099]
[1738820257731,8.49655099,202.02,201.93,8.49655099]
[1738820258035,8.49655099,202.02,201.96,0.03414983]
[1738820258435,8.49655099,201.98,201.96,0.03414983]
[1738820258635,13.24029049,201.99,201.96,0.03414983]
[1738820259529,4.9508,201.98,201.96,0.03414983]
[1738820259829,13.24029049,201.99,201.89,4.9527]
[1738820260735,4.9513,201.96,201.89,4.9527]
[1738820261037,0.03411295,201.95,201.9,0.03291484]
[1738820262361,0.03411295,201.95,201.9,4.98551484]
[1738820265640,0.03411295,201.95,201.9,0.03291484]
[1738820265840,0.03411295,201.95,201.91,4.9524]
[1738820272934,0.03411295,201.95,201.9,0.03291484]
[1738820273439,0.03411295,201.95,201.93,4.9518]
[1738820274139,0.03411295,201.95,201.9,0.03291484]
[1738820275839,0.03411295,201.95,201.93,4.9518]
[1738820280545,0.03411295,201.95,201.91,4.9522]
[1738820284748,0.03411295,201.95,201.92,4.9521]
[1738820292449,8.47389268,201.94,201.9,21.64032792]
[1738820293557,13.42559268,201.94,201.9,21.64032792]
[1738820298153,13.42619268,201.92,201.9,21.64032792]
[1738820298654,4.9524,201.91,201.9,21.64032792]
[1738820298854,4.9524,201.91,201.9,19.22172792]
[1738820300361,8.47389268,201.92,201.9,19.22172792]
[1738820301765,13.42559268,201.94,201.9,19.22172792]
[1738820302458,13.42559268,201.94,201.9,24.17432792]
[1738820303064,8.47389268,201.94,201.9,19.22172792]
[1738820303264,1.53641295,201.95,201.9,27.6956206]
[1738820303265,0.03411295,201.95,201.9,27.6956206]
[1738820303461,0.03411295,201.95,201.92,8.47389268]
[1738820304359,0.03411295,201.95,201.93,4.9519]
[1738820304861,0.03411295,201.95,201.94,8.47389268]
[1738820305060,14.87569268,202.04,201.97,4.9509]
[1738820305365,14.87569268,202.04,201.97,13.42479268]
[1738820306356,0.03227515,202.03,201.98,0.03670505]
[1738820307162,8.47389268,202.02,201.98,0.03670505]
[1738820307363,8.47389268,202.0,201.98,0.03670505]
[1738820307773,13.42419268,202.0,201.98,0.03670505]
[1738820309374,8.47389268,202.0,201.98,0.03670505]
[1738820311472,13.42409268,202.0,201.98,0.03670505]
[1738820313270,4.9504,201.99,201.98,0.03670505]
[1738820313969,8.47389268,202.0,201.98,0.03670505]
[1738820315481,13.42409268,202.0,201.98,0.03670505]
[1738820316483,8.47389268,202.0,201.98,0.03670505]
[1738820316777,4.9504,201.99,201.98,0.03670505]
[1738820317477,8.47389268,202.0,201.98,0.03670505]
[1738820320181,8.47389268,202.02,201.98,0.03670505]
[1738820321279,13.42359268,202.02,201.98,0.03670505]
[1738820321580,8.47389268,202.0,201.98,0.03670505]
[1738820324881,13.42409268,202.0,201.98,0.03670505]
[1738820326378,8.47389268,202.02,201.98,4.98730505]
[1738820326584,0.03227515,202.03,201.98,0.03670505]
[1738820326975,8.47389268,202.02,201.98,0.03670505]
[1738820328085,13.42359268,202.02,201.98,0.03670505]
[1738820329985,8.47389268,202.0,201.98,0.03670505]
[1738820330687,13.42419268,202.0,201.98,0.03670505]
[1738820331488,8.47389268,202.0,201.98,0.03670505]
[1738820331681,4.9504,201.99,201.98,0.03670505]
[1738820338790,8.47389268,202.0,201.96,3.92602215]
[1738820338989,13.42479268,201.97,201.96,3.92602215]
[1738820342394,8.47389268,201.97,201.94,0.03429827]
[1738820342596,13.42529268,201.95,201.94,0.03429827]
[1738820350599,8.47389268,201.95,201.94,0.03429827]
[1738820350804,8.5060325,201.99,201.94,0.03429827]
[1738820351001,0.03213982,201.99,201.97,8.47389268]
[1738820351503,0.03213982,201.99,201.98,4.9507]
[1738820353503,8.47389268,202.07,202.01,4.9499]
[1738820353906,8.47389268,202.05,201.98,8.47389268]
[1738820354106,8.47389268,202.03,201.96,12.39960843]
[1738820354299,8.47389268,202.01,201.96,3.92571575]
[1738820354498,8.47389268,202.01,201.97,0.03364124]
[1738820354998,0.03662081,202.02,201.98,8.47389268]
[1738820355603,0.03662081,202.02,201.97,4.98444124]
[1738820356006,0.03662081,202.02,201.97,0.03364124]
[1738820357208,0.03662081,202.02,201.97,4.98454124]
[1738820357508,0.03662081,202.02,201.98,8.47389268]
[1738820359004,0.03662081,202.02,201.98,13.42449268]
[1738820359200,13.42209268,202.09,202.0,8.47389268]
[1738820359399,13.42209268,202.09,201.96,3.92571575]
[1738820359400,8.47389268,202.09,202.02,17.34801193]
[1738820359802,8.47389268,202.09,202.02,12.39841193]
[1738820360007,8.47389268,202.09,202.02,3.92451925]
[1738820360401,8.47389268,202.09,202.03,0.03359241]
[1738820360900,4.9483,202.08,202.03,0.03359241]
[1738820361202,8.47389268,202.09,202.03,0.03359241]
[1738820361802,8.47389268,202.11,202.03,0.03359241]
[1738820362007,8.47389268,202.13,202.05,8.47389268]
[1738820362203,8.47389268,202.13,202.07,8.47389268]
[1738820362503,8.47389268,202.13,202.07,13.45733666]
[1738820362911,11.47639268,202.15,202.08,4.9481]
[1738820363205,8.47389268,202.19,202.13,8.47389268]
[1738820363404,135.00374633,202.24,202.14,4.9467]
[1738820363405,62.47539121,202.21,202.14,4.9467]
[1738820363706,54.00149853,202.21,202.17,8.47389268]
[1738820363912,62.47539121,202.25,202.17,8.47389268]
[1738820364111,8.47389268,202.23,202.16,3.9217575]
[1738820364510,54.00149853,202.25,202.19,8.47389268]
[1738820364714,54.00149853,202.25,202.18,13.19804198]
[1738820365810,54.00149853,202.25,202.17,0.0365729]
[1738820367515,4.9452,202.21,202.17,0.0365729]
[1738820367819,13.19804198,202.23,202.17,0.0365729]
[1738820368414,4.9457,202.19,202.17,0.0365729]
[1738820369314,13.19804198,202.23,202.17,0.0365729]
[1738820370316,4.9456,202.19,202.17,0.0365729]
[1738820377226,4.9458,202.18,202.17,0.0365729]
[1738820383434,13.19804198,202.2,202.17,0.0365729]
[1738820383733,13.19804198,202.23,202.17,0.0365729]
[1738820384236,4.9451,202.21,202.17,0.0365729]
[1738820384733,13.39757719,202.21,202.17,0.0365729]
[1738820386231,8.45247719,202.23,202.17,0.0365729]
[1738820386631,1.4733,202.25,202.17,0.0365729]
[1738820387030,4.9444,202.24,202.17,0.0365729]
[1738820387236,1.4733,202.25,202.17,0.0365729]
[1738820387931,4.9442,202.25,202.17,0.0365729]
[1738820388934,4.9444,202.24,202.17,4.9825729]
[1738820390136,13.20313428,202.3,202.17,13.23970718]
[1738820390334,13.20313428,202.3,202.17,13.20313428]
[1738820390533,13.20313428,202.3,202.21,0.0358829]
[1738820391036,3.098,202.34,202.21,0.0358829]
[1738820391037,13.20313428,202.33,202.21,0.0358829]
[1738820391237,13.20313428,202.33,202.17,13.20313428]
[1738820391438,13.20313428,202.33,202.25,0.03123345]
[1738820392841,14.73093428,202.36,202.25,0.03123345]
[1738820393440,4.9418,202.35,202.26,4.9436]
[1738820393736,14.73093428,202.36,202.26,4.9436]
[1738820393929,19.67243428,202.36,202.26,4.9436]
[1738820394133,14.73093428,202.36,202.25,0.03123345]
[1738820394536,13.20313428,202.32,202.25,0.03123345]
[1738820396841,4.9422,202.33,202.25,0.03123345]
[1738820397746,4.9425,202.32,202.25,0.03123345]
[1738820398645,13.20313428,202.35,202.25,0.03123345]
[1738820398846,1.5278,202.36,202.25,0.03123345]
[1738820399245,1.5278,202.36,202.26,4.9437]
[1738820399446,4.9418,202.35,202.25,0.03123345]
[1738820400740,4.942,202.34,202.25,4.97523345]
[1738820400945,13.20313428,202.35,202.25,0.03123345]
[1738820401244,4.9427,202.31,202.25,0.03123345]
[1738820401552,13.20313428,202.35,202.25,0.03123345]
[1738820401742,1.5278,202.36,202.25,0.03123345]
[1738820402751,4.9422,202.33,202.25,4.97513345]
[1738820403946,4.9424,202.32,202.25,4.97513345]
[1738820404341,13.20313428,202.33,202.25,0.03123345]
[1738820404549,13.20313428,202.3,202.25,0.03123345]
[1738820404747,4.9434,202.28,202.25,0.03123345]
[1738820405345,4.9436,202.27,202.25,0.03123345]
[1738820406646,13.20313428,202.3,202.25,0.03123345]
[1738820406847,4.9433,202.29,202.25,0.03123345]
[1738820407247,4.9434,202.28,202.25,0.03123345]
[1738820407551,13.20313428,202.3,202.25,0.03123345]
[1738820408156,4.9432,202.29,202.25,0.03123345]
[1738820408453,13.20313428,202.3,202.25,0.03123345]
[1738820408753,8.44838642,202.26,202.25,0.03123345]
[1738820410151,8.44838642,202.26,202.14,14.13403476]
[1738820410350,8.44838642,202.21,202.14,14.13403476]
[1738820410650,8.44838642,202.19,202.14,10.63224834]
[1738820411352,8.48166724,202.19,202.14,10.66791143]
[1738820411950,0.03328082,202.19,202.14,14.16969785]
[1738820412156,0.03328082,202.19,202.16,4.9462]
[1738820412556,0.03328082,202.19,202.14,14.16969785]
[1738820412750,0.03328082,202.19,202.16,8.44838642]
[1738820413855,0.03328082,202.19,202.18,8.44838642]
[1738820414658,0.03328082,202.19,202.17,4.946]
[1738820417758,0.03328082,202.19,202.17,18.14764855]
[1738820418056,1.5581,202.29,202.17,13.20164855]
[1738820418259,1.5581,202.29,202.2,13.20164855]
[1738820418758,6.5013,202.29,202.22,4.9446]
[1738820419267,6.5013,202.29,202.23,0.03461821]
[1738820420361,1.5812,202.31,202.23,0.03461821]
[1738820421058,1.5812,202.31,202.26,4.9438]
[1738820421467,1.5812,202.31,202.24,4.9441]
[1738820421659,1.5812,202.31,202.23,0.03461821]
[1738820422365,4.9431,202.3,202.23,0.03461821]
[1738820423762,14.78284855,202.31,202.23,0.03461821]
[1738820424160,13.20164855,202.28,202.23,0.03461821]
[1738820424360,4.9442,202.25,202.23,0.03461821]
[1738820426661,1.5385,202.27,202.23,0.03461821]
[1738820427763,1.5385,202.27,202.23,4.97901821]
[1738820429164,6.5024,202.3,202.24,4.9442]
[1738820430457,1.5812,202.31,202.26,4.9437]
[1738820430659,1.5812,202.31,202.23,0.03461821]
[1738820432767,4.9429,202.3,202.24,4.9442]
[1738820433060,1.5812,202.31,202.23,0.03461821]
[1738820433266,14.78284855,202.31,202.23,0.03461821]
[1738820434263,4.9435,202.28,202.23,0.03461821]
[1738820434564,1.5812,202.31,202.23,0.03461821]
[1738820434762,8.44644313,202.29,202.23,0.03461821]
[1738820435766,8.44644313,202.29,202.24,4.9443]
[1738820436164,8.44644313,202.29,202.23,0.03461821]
[1738820436363,10.02764313,202.31,202.26,4.9438]
[1738820436562,10.02764313,202.31,202.23,8.48106134]
[1738820437766,14.97034313,202.31,202.26,4.9438]
[1738820438263,4.943,202.3,202.24,4.9441]
[1738820438465,8.44644313,202.29,202.23,0.03461821]
[1738820438868,8.44644313,202.27,202.23,0.03461821]
[1738820439771,13.39004313,202.27,202.23,0.03461821]
[1738820439969,8.44644313,202.25,202.23,0.03461821]
[1738820441773,13.39054313,202.25,202.23,0.03461821]
[1738820442074,8.44644313,202.25,202.23,0.03461821]
[1738820443477,8.44644313,202.27,202.23,0.03461821]
[1738820444274,8.44644313,202.29,202.23,0.03461821]
[1738820445582,10.02764313,202.31,202.25,4.944]
[1738820445880,10.02764313,202.31,202.23,8.48106134]
[1738820446579,1.5812,202.31,202.23,0.03461821]
[1738820446874,1.5812,202.31,202.26,4.9438]
[1738820448978,13.19259067,202.35,202.26,4.9438]
[1738820448979,4.9421,202.34,202.26,4.9438]
[1738820449187,13.19259067,202.35,202.26,4.9438]
[1738820449380,13.19259067,202.35,202.21,13.19259067]
[1738820449381,4.9424,202.32,202.28,0.03570058]
[1738820450682,4.9426,202.31,202.28,0.03570058]
[1738820451685,13.19259067,202.35,202.28,0.03570058]
[1738820451980,4.9425,202.32,202.28,0.03570058]
[1738820453686,13.19259067,202.35,202.28,0.03570058]
[1738820453983,2.9367,202.36,202.28,0.03570058]
[1738820455188,2.9367,202.36,202.28,4.97890058]
[1738820455486,2.9367,202.36,202.28,0.03570058]
[1738820456792,4.9419,202.34,202.28,4.97900058]
[1738820457087,2.9367,202.36,202.28,0.03570058]
[1738820457888,4.9424,202.32,202.28,0.03570058]
[1738820459595,4.9421,202.34,202.28,0.03570058]
[1738820459994,2.9367,202.36,202.28,0.03570058]
[1738820460500,4.9424,202.32,202.28,0.03570058]
[1738820460799,2.9367,202.36,202.28,0.03570058]
[1738820460998,4.942,202.34,202.28,0.03570058]
[1738820461199,2.9367,202.36,202.28,0.03570058]
[1738820462403,4.9419,202.35,202.29,4.9431]
[1738820462799,4.9419,202.35,202.28,0.03570058]
[1738820463301,2.9367,202.36,202.3,4.9428]
[1738820463600,1.5608,202.39,202.28,0.03570058]
[1738820464003,6.5016,202.39,202.29,4.9429]
[1738820464197,6.5016,202.39,202.28,0.03570058]
[1738820464399,1.5608,202.39,202.28,0.03570058]
[1738820464598,1.5608,202.39,202.28,4.97890058]
[1738820465597,13.19259067,202.38,202.28,4.97890058]
[1738820465801,4.9412,202.37,202.28,4.97890058]
[1738820466600,8.44000399,202.36,202.28,13.41890457]
[1738820470102,8.44000399,202.36,202.29,4.9431]
[1738820470498,8.44000399,202.36,202.28,8.47570457]
[1738820471805,13.38140399,202.36,202.29,4.943]
[1738820472603,13.38140399,202.36,202.28,8.47570457]
[1738820472804,8.44000399,202.36,202.31,4.9426]
[1738820472996,4.9411,202.38,202.3,8.44000399]
[1738820472997,8.44000399,202.38,202.3,8.44000399]
[1738820474197,8.44000399,202.4,202.32,8.44000399]
[1738820474402,8.44000399,202.42,202.34,8.44000399]
[1738820474599,4.38439509,202.45,202.38,8.44000399]
[1738820474806,8.44000399,202.53,202.43,8.44000399]
[1738820475007,8.44000399,202.51,202.43,8.44000399]
[1738820475397,8.44000399,202.49,202.45,0.03222622]
[1738820475596,8.44000399,202.47,202.39,13.14830399]
[1738820475804,8.44000399,202.43,202.39,3.1069]
[1738820476004,8.44000399,202.43,202.41,0.03496533]
[1738820479407,13.37980399,202.43,202.41,0.03496533]
[1738820480204,8.44000399,202.43,202.41,0.03496533]
[1738820481311,13.37980399,202.43,202.41,0.03496533]
[1738820482808,8.44000399,202.43,202.32,4.7071]
[1738820483111,8.44000399,202.36,202.27,8.44000399]
[1738820483309,8.44000399,202.36,202.3,4.9428]
[1738820483511,8.44000399,202.34,202.27,8.44000399]
[1738820483913,8.44000399,202.32,202.28,0.03621942]
[1738820484215,8.44000399,202.32,202.26,2.972]
[1738820484414,0.03642595,202.33,202.29,4.943]
[1738820485314,0.03642595,202.33,202.28,0.036948]
[1738820485615,8.44000399,202.32,202.28,0.036948]
[1738820485824,8.44000399,202.3,202.28,0.036948]
[1738820487716,13.38290399,202.3,202.28,0.036948]
[1738820487913,8.44000399,202.3,202.28,0.036948]
[1738820488711,13.38290399,202.3,202.28,0.036948]
[1738820490114,4.9431,202.29,202.28,0.036948]
[1738820493623,8.44000399,202.3,202.28,0.036948]
[1738820494220,13.38290399,202.3,202.28,0.036948]
[1738820494623,8.44000399,202.3,202.28,0.036948]
[1738820495826,4.9431,202.29,202.28,0.036948]
[1738820497227,8.44000399,202.3,202.19,8.44000399]
[1738820497427,8.44000399,202.25,202.19,8.44000399]
[1738820498125,0.03281598,202.24,202.2,0.03171505]
[1738820503632,4.97711598,202.24,202.2,0.03171505]
[1738820504230,4.9446,202.23,202.2,0.03171505]
[1738820504627,4.97741598,202.24,202.2,0.03171505]
[1738820506432,4.9446,202.23,202.2,0.03171505]
[1738820509736,13.38460399,202.23,202.2,0.03171505]
[1738820511833,0.03281598,202.24,202.2,0.03171505]
[1738820512033,0.03281598,202.24,202.23,8.44000399]
[1738820513336,0.03281598,202.24,202.23,13.38460399]
[1738820516640,0.03281598,202.24,202.23,4.9446]
[1738820516835,0.03281598,202.24,202.21,13.38490399]
[1738820517042,0.03281598,202.24,202.2,0.03171505]
[1738820517942,0.03281598,202.24,202.21,4.945]
[1738820519344,0.03281598,202.24,202.21,13.38500399]
[1738820519841,0.03281598,202.24,202.22,4.9447]
[1738820521939,0.03281598,202.24,202.23,8.44000399]
[1738820522749,0.03281598,202.24,202.23,13.38460399]
[1738820525848,8.44000399,202.31,202.23,8.44000399]
[1738820526054,8.44000399,202.35,202.3,4.9428]
[1738820526651,8.44000399,202.35,202.28,8.44000399]
[1738820526851,13.38160399,202.35,202.29,4.943]
[1738820527052,0.03634128,202.34,202.29,4.97511789]
[1738820528755,0.03634128,202.34,202.29,0.03211789]
[1738820529156,0.03634128,202.34,202.3,8.44000399]
[1738820530058,0.03634128,202.34,202.33,4.9421]
[1738820541667,13.37990399,202.43,202.32,8.44000399]
[1738820541869,8.44000399,202.43,202.38,4.9407]
[1738820542169,8.44000399,202.45,202.39,8.44000399]
[1738820542372,8.44000399,202.45,202.37,8.44000399]
[1738820542968,8.44000399,202.45,202.39,0.03250788]
[1738820543863,4.5248,202.5,202.39,0.03250788]
[1738820543864,8.44000399,202.49,202.41,8.44000399]
[1738820544273,8.44000399,202.49,202.43,0.03369579]
[1738820544761,8.44000399,202.49,202.44,4.9393]
[1738820547467,8.44000399,202.51,202.45,8.44000399]
[1738820547667,4.945,202.68,202.43,0.03369579]
[1738820547668,8.44000399,202.55,202.47,8.44000399]
[1738820547971,8.44000399,202.55,202.43,3.85369579]
[1738820547972,8.44000399,202.55,202.49,8.47688834]
[1738820548270,8.44000399,202.55,202.49,0.03688435]
[1738820549271,8.44000399,202.57,202.49,8.47688834]
[1738820549677,8.44000399,202.59,202.51,8.44000399]
[1738820550271,8.44000399,202.59,202.53,0.03408524]
[1738820550473,8.44000399,202.57,202.53,0.03408524]
[1738820550972,8.44000399,202.59,202.53,0.03408524]
[1738820551675,8.44000399,202.59,202.53,4.97118524]
[1738820551973,8.44000399,202.59,202.53,0.03408524]
[1738820552571,8.44000399,202.57,202.53,0.03408524]
[1738820552772,8.44000399,202.55,202.53,0.03408524]
[1738820554266,8.44000399,202.55,202.42,8.44000399]
[1738820554469,4.7503,202.6,202.42,8.44000399]
[1738820554470,8.44000399,202.49,202.42,8.44000399]
[1738820554678,8.44000399,202.51,202.42,8.44000399]
[1738820555072,8.44000399,202.49,202.42,8.44000399]
[1738820555377,0.0359664,202.48,202.43,4.97350855]
[1738820555878,4.9744664,202.48,202.43,0.03400855]
[1738820556076,0.0359664,202.48,202.43,0.03400855]
[1738820556777,8.44000399,202.47,202.43,0.03400855]
[1738820557173,13.37880399,202.47,202.43,0.03400855]
[1738820558782,8.44000399,202.47,202.43,0.03400855]
[1738820559282,0.0359664,202.48,202.43,0.03400855]
[1738820559482,0.0359664,202.48,202.43,4.97360855]
[1738820561281,8.44000399,202.47,202.43,0.03400855]
[1738820564484,0.0359664,202.48,202.43,0.03400855]
[1738820564685,0.0359664,202.48,202.45,4.939]
[1738820565886,0.0359664,202.48,202.46,4.9389]
[1738820566089,0.0359664,202.48,202.46,8.44000399]
[1738820566780,0.0359664,202.48,202.47,4.9387]
[1738820568489,0.0359664,202.48,202.46,4.9389]
[1738820569290,0.0359664,202.48,202.44,4.9392]
[1738820569588,8.44000399,202.47,202.44,4.9392]
[1738820569889,8.44000399,202.47,202.43,0.03400855]
[1738820570090,8.44000399,202.47,202.44,4.9394]
[1738820570591,0.0359664,202.48,202.44,4.9394]
[1738820570791,0.0359664,202.48,202.43,4.97350855]
[1738820570991,0.0359664,202.48,202.43,0.03400855]
[1738820571793,0.0359664,202.48,202.44,4.9393]
[1738820572792,0.0359664,202.48,202.43,0.03400855]
[1738820572990,8.44000399,202.47,202.43,0.03400855]
[1738820574691,4.939,202.46,202.43,0.03400855]
[1738820574892,8.44000399,202.45,202.43,0.03400855]
[1738820575993,4.939,202.46,202.43,0.03400855]
[1738820577596,8.44000399,202.47,202.43,0.03400855]
[1738820577798,0.0359664,202.48,202.43,0.03400855]
[1738820578507,4.9387,202.47,202.43,0.03400855]
[1738820579108,4.939,202.46,202.43,0.03400855]
[1738820580109,8.44000399,202.47,202.43,0.03400855]
[1738820581809,13.37870399,202.47,202.43,0.03400855]
[1738820582210,8.44000399,202.47,202.43,0.03400855]
[1738820582403,0.0359664,202.48,202.43,0.03400855]
[1738820582907,13.37870399,202.47,202.43,0.03400855]
[1738820583101,8.44000399,202.47,202.43,0.03400855]
[1738820583301,0.0359664,202.48,202.43,0.03400855]
[1738820583706,0.0359664,202.48,202.43,4.97370855]